bitfinex/quotes_BTCUSD_20240811
["timestamp","ask_amount","ask_price","bid_price","bid_amount"]
[1723361869285,1.001831,61300.0,61299.0,1.48945995]
[1723361869514,1.001831,61300.0,61299.0,1.46945995]
[1723361870091,1.001831,61300.0,61299.0,1.33155995]
[1723361870994,1.001831,61300.0,61299.0,1.19610292]
[1723361873203,1.001831,61300.0,61299.0,1.11677292]
[1723361873524,1.001831,61300.0,61299.0,1.13077292]
[1723361873816,1.001831,61300.0,61299.0,1.11777292]
[1723361874056,1.001831,61300.0,61299.0,1.13177292]
[1723361874247,1.001831,61300.0,61299.0,1.26723071]
[1723361874390,1.001831,61300.0,61299.0,1.25323071]
[1723361875285,1.001831,61300.0,61299.0,1.13177292]
[1723361876372,1.001831,61300.0,61299.0,1.11777292]
[1723361876734,1.001831,61300.0,61299.0,1.13177292]
[1723361877032,1.001831,61300.0,61299.0,1.11777292]
[1723361877232,1.001831,61300.0,61299.0,1.25322858]
[1723361877436,1.001831,61300.0,61299.0,1.26722858]
[1723361877766,1.001831,61300.0,61299.0,1.11777292]
[1723361877971,1.001831,61300.0,61299.0,1.2962008]
[1723361878188,1.001831,61300.0,61299.0,1.3072008]
[1723361878391,1.001831,61300.0,61299.0,1.11177292]
[1723361878590,1.001831,61300.0,61299.0,1.29320057]
[1723361878908,1.001331,61300.0,61299.0,1.45038437]
[1723361879693,1.001331,61300.0,61299.0,1.43838437]
[1723361879894,1.001331,61300.0,61299.0,1.41928437]
[1723361880339,1.001331,61300.0,61299.0,1.40528437]
[1723361880544,1.001331,61300.0,61299.0,1.41628437]
[1723361880735,1.001331,61300.0,61299.0,1.42728437]
[1723361880980,1.001331,61300.0,61299.0,1.41628437]
[1723361881186,1.001331,61300.0,61299.0,1.40619847]
[1723361881306,1.001331,61300.0,61299.0,1.40219847]
[1723361881508,1.077431,61300.0,61299.0,1.20204611]
[1723361881719,1.001331,61300.0,61299.0,1.44322303]
[1723361882126,1.001331,61300.0,61299.0,1.45422303]
[1723361883174,1.001331,61300.0,61299.0,1.46622303]
[1723361883378,1.001331,61300.0,61299.0,1.44322303]
[1723361883578,1.001331,61300.0,61299.0,1.3952436]
[1723361883892,1.001331,61300.0,61299.0,1.4292436]
[1723361884105,1.141731,61300.0,61299.0,1.23342868]
[1723361884272,1.141731,61300.0,61299.0,1.03024328]
[1723361884479,1.141731,61300.0,61299.0,1.30043581]
[1723361884699,1.141731,61300.0,61299.0,0.84365981]
[1723361884933,1.141731,61300.0,61299.0,0.58346728]
[1723361885332,1.141731,61300.0,61299.0,0.48346728]
[1723361886196,1.141731,61300.0,61299.0,0.15738528]
[1723361886540,1.14681171,61300.0,61299.0,0.15738528]
[1723361886952,1.14681171,61300.0,61299.0,0.13638528]
[1723361887167,1.141731,61300.0,61299.0,0.13638528]
[1723361887355,1.141731,61300.0,61299.0,0.14838528]
[1723361887756,1.141731,61300.0,61299.0,0.13638528]
[1723361887981,1.143731,61300.0,61299.0,0.13640184]
[1723361888183,1.145731,61300.0,61299.0,0.13640184]
[1723361888581,1.145731,61300.0,61299.0,0.13640206]
[1723361888780,1.143731,61300.0,61299.0,0.13640206]
[1723361889428,1.255923,61300.0,61299.0,0.13640206]
[1723361889794,1.141731,61300.0,61299.0,0.13640206]
[1723361889996,1.141731,61300.0,61299.0,0.0009141]
[1723361890219,1.258923,61300.0,61299.0,0.0009141]
[1723361890377,1.54123557,61300.0,61299.0,0.0009141]
[1723361890600,2.10458419,61300.0,61299.0,0.0009141]
[1723361890814,2.11997079,61300.0,61299.0,0.0009141]
[1723361891024,2.12674661,61300.0,61299.0,0.0009141]
[1723361891241,2.12097079,61300.0,61299.0,0.0009141]
[1723361891670,2.12097194,61300.0,61299.0,0.0009141]
[1723361891866,2.11997194,61300.0,61299.0,0.0009141]
[1723361892125,2.12974797,61300.0,61299.0,0.0019141]
[1723361892344,2.12297197,61300.0,61299.0,0.0210141]
[1723361893052,2.12597197,61300.0,61299.0,0.0220141]
[1723361893163,2.12297197,61300.0,61299.0,0.0210141]
[1723361893373,2.11997197,61300.0,61299.0,0.0200141]
[1723361893584,2.11997197,61300.0,61299.0,0.0220141]
[1723361893585,2.12997197,61300.0,61299.0,0.0220141]
[1723361894432,2.24198326,61300.0,61299.0,0.0220141]
[1723361894603,2.25198326,61300.0,61299.0,0.0220141]
[1723361895003,2.01851721,61300.0,61299.0,0.0220141]
[1723361895202,1.89158781,61300.0,61299.0,0.0220141]
[1723361895403,1.99916946,61300.0,61299.0,0.0220141]
[1723361896034,1.99916926,61300.0,61299.0,0.0220141]
[1723361896424,1.90158781,61300.0,61299.0,0.0220141]
[1723361897315,1.99916926,61300.0,61299.0,0.0220141]
[1723361897942,1.90158781,61300.0,61299.0,0.0220141]
[1723361898284,1.99916926,61300.0,61299.0,0.0220141]
[1723361898419,1.97473711,61300.0,61299.0,0.0220141]
[1723361898643,1.99916926,61300.0,61299.0,0.0220141]
[1723361898814,1.90158798,61300.0,61299.0,0.0220141]
[1723361899300,2.12488992,61300.0,61299.0,0.0220141]
[1723361899471,1.97471345,61300.0,61299.0,0.0220141]
[1723361899625,2.58471347,61300.0,61299.0,0.0220141]
[1723361899841,2.52158792,61300.0,61299.0,0.0220141]
[1723361900050,2.51158792,61300.0,61299.0,0.0220141]
[1723361900251,2.58471378,61300.0,61299.0,0.0220141]
[1723361900446,2.58470874,61300.0,61299.0,0.0220141]
[1723361900653,2.81309274,61300.0,61299.0,0.0220141]
[1723361900856,2.58470874,61300.0,61299.0,0.0220141]
[1723361901548,2.51158792,61300.0,61299.0,0.0220141]
[1723361902382,0.114226,61282.0,61281.0,0.0009141]
[1723361902623,0.446278,61282.0,61281.0,0.0009141]
[1723361903822,0.451278,61282.0,61281.0,0.0009141]
[1723361904325,0.45136103,61282.0,61281.0,0.0009141]
[1723361904589,0.45336103,61282.0,61281.0,0.0009141]
[1723361905262,0.448278,61282.0,61281.0,0.0009141]
[1723361905959,0.446278,61282.0,61281.0,0.0009141]
[1723361906166,0.68273,61282.0,61281.0,0.0019141]
[1723361906366,0.454278,61282.0,61281.0,0.0019141]
[1723361906571,0.453278,61282.0,61281.0,0.0019141]
[1723361906922,0.453278,61282.0,61281.0,0.0009141]
[1723361907137,0.45836107,61282.0,61281.0,0.0019141]
[1723361907373,0.460278,61282.0,61281.0,0.0019141]
[1723361908179,0.0905,61282.0,61281.0,0.0019141]
[1723361908393,0.204726,61282.0,61281.0,0.0019141]
[1723361909482,0.0905,61282.0,61281.0,0.0019141]
[1723361910323,0.128226,61282.0,61281.0,0.0019141]
[1723361910732,0.014,61282.0,61281.0,0.0019141]
[1723361910970,0.014,61282.0,61281.0,0.1161411]
[1723361911398,0.014,61282.0,61281.0,0.0019141]
[1723361912561,0.014,61282.0,61281.0,0.7158511]
[1723361912891,0.014,61282.0,61281.0,0.4873961]
[1723361913432,0.007,61282.0,61281.0,0.4863961]
[1723361913683,0.114218,61286.0,61282.0,0.114225]
[1723361914067,0.0765,61287.0,61282.0,0.114225]
[1723361914271,0.0765,61287.0,61283.0,0.114223]
[1723361914526,0.228424,61290.0,61284.0,0.114221]
[1723361914527,0.304924,61290.0,61284.0,0.114221]
[1723361914700,0.11929525,61289.0,61284.0,0.114221]
[1723361914838,0.114213,61289.0,61284.0,0.114221]
[1723361915050,0.114215,61288.0,61283.0,0.114223]
[1723361915246,0.114218,61286.0,61282.0,0.114225]
[1723361915482,0.114215,61288.0,61282.0,0.114225]
[1723361915687,0.114215,61288.0,61283.0,0.114224]
[1723361915998,0.228426,61289.0,61283.0,0.114224]
[1723361915999,0.11929927,61287.0,61283.0,0.114224]
[1723361916203,0.114217,61287.0,61283.0,0.115224]
[1723361916640,0.008,61288.0,61283.0,0.115224]
[1723361916815,0.00508227,61287.0,61285.0,0.114219]
[1723361916949,0.00508227,61287.0,61284.0,0.19606746]
[1723361917162,0.114213,61289.0,61285.0,0.11422]
[1723361917367,0.007,61287.0,61285.0,0.114219]
[1723361917991,0.007,61287.0,61286.0,0.114218]
[1723361918224,0.0120822,61287.0,61286.0,0.114218]
[1723361918368,0.0180822,61287.0,61286.0,0.114218]
[1723361918573,0.0180822,61287.0,61284.0,0.19606646]
[1723361918797,0.0050822,61286.0,61284.0,0.08184646]
[1723361918999,0.0050822,61286.0,61284.0,0.19606746]
[1723361919380,0.008,61287.0,61284.0,0.19606746]
[1723361919609,0.00508219,61286.0,61284.0,0.19606746]
[1723361920209,0.00508219,61285.0,61281.0,0.0009141]
[1723361920512,0.11930319,61285.0,61281.0,0.1151411]
[1723361920873,0.11930434,61284.0,61281.0,0.0009141]
[1723361921073,0.00508234,61283.0,61281.0,0.0009141]
[1723361921977,0.114224,61283.0,61281.0,0.0009141]
[1723361922214,0.22944,61285.0,61281.0,0.0009141]
[1723361922215,0.11930835,61282.0,61281.0,0.0009141]
[1723361922610,0.00508235,61282.0,61281.0,0.0009141]
[1723361922810,0.11930746,61283.0,61281.0,0.0009141]
[1723361922952,0.00508246,61282.0,61281.0,0.0009141]
[1723361923154,0.00508246,61282.0,61281.0,0.0029141]
[1723361923531,0.00508246,61282.0,61281.0,0.0019141]
[1723361923666,0.00508246,61282.0,61281.0,0.0039141]
[1723361923871,0.11930846,61282.0,61281.0,0.0039141]
[1723361924076,0.00508246,61282.0,61281.0,0.0019141]
[1723361924523,0.114221,61285.0,61281.0,0.0009141]
[1723361924695,0.0050825,61284.0,61281.0,0.0009141]
[1723361925019,0.002,61282.0,61281.0,0.0009141]
[1723361925300,0.1213085,61282.0,61281.0,0.0009141]
[1723361925771,0.0050825,61282.0,61281.0,0.0009141]
[1723361925940,0.0100825,61284.0,61281.0,0.1950411]
[1723361926165,0.0050825,61283.0,61282.0,0.114225]
[1723361926425,0.00508232,61283.0,61282.0,0.180126]
[1723361926657,0.399321,61291.0,61284.0,0.114222]
[1723361926658,0.114214,61289.0,61284.0,0.114222]
[1723361927166,0.00508232,61288.0,61284.0,0.114222]
[1723361927349,0.00508232,61288.0,61285.0,0.28131811]
[1723361927647,0.228421,61291.0,61286.0,0.13551799]
[1723361927648,0.114212,61290.0,61286.0,0.13551799]
[1723361927801,0.0050818,61289.0,61285.0,0.1458]
[1723361928008,0.0050818,61288.0,61286.0,0.13551472]
[1723361928249,0.114213,61289.0,61285.0,0.260019]
[1723361928591,0.00508179,61288.0,61286.0,0.1355145]
[1723361928761,0.00508179,61288.0,61285.0,0.1458]
[1723361928907,0.228411,61293.0,61286.0,0.13551451]
[1723361928908,0.228424,61290.0,61286.0,0.13551451]
[1723361929108,0.11929479,61289.0,61285.0,0.1458]
[1723361929433,0.00508179,61288.0,61285.0,0.1458]
[1723361929635,0.00508179,61288.0,61285.0,0.260019]
[1723361929833,0.00508179,61288.0,61286.0,0.13551515]
[1723361930013,0.00508179,61288.0,61285.0,0.1458]
[1723361930220,0.00508179,61288.0,61286.0,0.13551471]
[1723361930421,0.228406,61295.0,61285.0,0.260019]
[1723361930422,0.114211,61290.0,61285.0,0.260019]
[1723361930622,0.002,61288.0,61286.0,0.13551449]
[1723361930819,0.002,61288.0,61286.0,0.114217]
[1723361931118,0.002,61288.0,61285.0,0.1458]
[1723361931326,0.002,61288.0,61286.0,0.13551428]
[1723361931528,0.002,61288.0,61285.0,0.1458]
[1723361931731,0.004,61288.0,61285.0,0.1458]
[1723361931954,0.002,61288.0,61285.0,0.1458]
[1723361932120,0.002,61288.0,61285.0,0.260019]
[1723361932525,0.002,61288.0,61286.0,0.13551472]
[1723361932859,0.004,61288.0,61285.0,0.37424]
[1723361933060,0.002,61288.0,61286.0,0.13551471]
[1723361933364,0.004,61288.0,61287.0,1.09805672]
[1723361933566,0.002,61288.0,61287.0,1.09805672]
[1723361934752,0.04884505,61294.0,61292.0,0.114206]
[1723361935008,0.00508167,61293.0,61292.0,0.114206]
[1723361936243,0.00708167,61293.0,61292.0,0.114206]
[1723361936398,0.05392672,61293.0,61292.0,0.114206]
[1723361936600,0.05597964,61293.0,61292.0,0.114206]
[1723361936876,0.05697964,61293.0,61292.0,0.34262]
[1723361937076,0.05089797,61293.0,61292.0,0.260006]
[1723361937411,0.05089797,61293.0,61292.0,0.262006]
[1723361937809,0.04889797,61294.0,61293.0,0.114205]
[1723361938013,0.05397957,61294.0,61293.0,0.114205]
[1723361939016,0.05597957,61294.0,61293.0,0.114205]
[1723361939643,0.05697957,61294.0,61293.0,0.114205]
[1723361939868,0.05597957,61294.0,61292.0,0.1458]
[1723361940043,0.0050816,61293.0,61292.0,0.1458]
[1723361940400,0.00508159,61293.0,61292.0,0.260006]
[1723361940634,0.00508159,61293.0,61292.0,0.48842]
[1723361941092,0.00508159,61293.0,61292.0,0.260006]
[1723361941644,0.00508159,61293.0,61292.0,0.1458]
[1723361941834,0.00508159,61293.0,61292.0,0.260007]
[1723361942040,0.00608159,61294.0,61292.0,0.260007]
[1723361942407,0.00508159,61293.0,61292.0,0.262007]
[1723361942612,0.00508159,61294.0,61292.0,0.262007]
[1723361942814,0.04889042,61295.0,61293.0,0.114205]
[1723361943008,0.0050816,61294.0,61293.0,0.114205]
[1723361943209,0.0060816,61294.0,61293.0,0.114205]
[1723361943414,0.00508159,61294.0,61293.0,0.114205]
[1723361944008,0.00508159,61295.0,61292.0,0.1458]
[1723361944172,0.00508159,61294.0,61292.0,0.260006]
[1723361944372,0.00508159,61293.0,61292.0,0.260006]
[1723361944712,0.0783,61293.0,61290.0,0.11421]
[1723361944891,0.05396319,61295.0,61290.0,0.11421]
[1723361944892,0.00508159,61292.0,61290.0,0.16381492]
[1723361945077,0.00508159,61291.0,61290.0,0.27802592]
[1723361945277,0.00508163,61294.0,61291.0,0.114209]
[1723361945475,0.00508163,61293.0,61287.0,0.114215]
[1723361945792,0.00508163,61293.0,61292.0,0.001]
[1723361946220,0.00508163,61293.0,61290.0,0.11421]
[1723361946416,0.00508163,61293.0,61288.0,0.114213]
[1723361946417,0.11928763,61293.0,61288.0,0.114213]
[1723361946619,0.00508163,61292.0,61289.0,0.1355107]
[1723361946817,0.00508163,61291.0,61288.0,0.114213]
[1723361947017,0.00508163,61290.0,61289.0,0.1355107]
[1723361947220,0.00508163,61292.0,61289.0,0.3265227]
[1723361947456,0.00508163,61291.0,61289.0,0.191012]
[1723361947637,0.0488816,61295.0,61290.0,0.114211]
[1723361947833,0.00508164,61294.0,61291.0,0.114208]
[1723361948032,0.00508164,61294.0,61292.0,0.001]
[1723361948411,0.00508164,61294.0,61292.0,0.115206]
[1723361948611,0.00508164,61294.0,61292.0,0.114206]
[1723361948818,0.00508164,61294.0,61290.0,0.228422]
[1723361949020,0.00508164,61294.0,61289.0,0.0768]
[1723361949400,0.00508164,61294.0,61292.0,0.001]
[1723361949722,0.00508164,61294.0,61292.0,0.0615]
[1723361949984,0.00508161,61293.0,61292.0,0.0615]
[1723361950537,0.00508161,61294.0,61292.0,0.0615]
[1723361951476,0.05395773,61294.0,61292.0,0.0625]
[1723361951679,0.00508161,61293.0,61292.0,0.0625]
[1723361951997,0.00508161,61293.0,61292.0,0.0635]
[1723361952201,0.00508161,61294.0,61292.0,0.0635]
[1723361952403,0.00508161,61293.0,61292.0,0.0635]
[1723361952602,0.05395773,61294.0,61292.0,0.0615]
[1723361952833,0.00508161,61293.0,61292.0,0.0624152]
[1723361953008,0.00508161,61293.0,61292.0,0.0664152]
[1723361953624,0.04887612,61293.0,61292.0,0.0664152]
[1723361953842,0.12235776,61293.0,61292.0,0.0664152]
[1723361954213,0.11727612,61293.0,61292.0,0.0664152]
[1723361954467,0.12235777,61293.0,61292.0,0.0664152]
[1723361954667,0.12235777,61293.0,61292.0,0.0644152]
[1723361954798,0.12235777,61293.0,61292.0,0.0624152]
[1723361955018,0.12235777,61293.0,61292.0,0.0634152]
[1723361955422,0.12235777,61293.0,61292.0,0.0624152]
[1723361955786,0.12235777,61293.0,61292.0,0.0634152]
[1723361955965,0.12235777,61293.0,61292.0,0.0644152]
[1723361957364,0.12235776,61293.0,61292.0,0.0644152]
[1723361957563,0.07348164,61293.0,61292.0,0.0644152]
[1723361958529,0.07845752,61293.0,61292.0,0.1786222]
[1723361958735,0.07845752,61293.0,61292.0,0.31413329]
[1723361958736,0.07348164,61293.0,61292.0,0.31413329]
[1723361959052,0.07348164,61293.0,61292.0,0.19992629]
[1723361959260,0.07348164,61293.0,61292.0,0.31413329]
[1723361959496,0.07348164,61293.0,61292.0,0.19992629]
[1723361960891,0.07348149,61293.0,61292.0,0.19992167]
[1723361961342,0.12240344,61293.0,61292.0,0.19992167]
[1723361962700,0.07348149,61293.0,61292.0,0.19992167]
[1723361963407,0.12240344,61293.0,61292.0,0.19992167]
[1723361964107,0.12240344,61293.0,61292.0,0.0644152]
[1723361964313,0.1224035,61293.0,61292.0,0.19992364]
[1723361964570,0.12240346,61293.0,61292.0,0.19992364]
[1723361964958,0.12240346,61293.0,61292.0,0.19892364]
[1723361965214,0.12240346,61293.0,61292.0,0.0624152]
[1723361965215,0.12240347,61293.0,61292.0,0.0624152]
[1723361965415,0.12240347,61293.0,61292.0,0.13642219]
[1723361965936,0.23660847,61293.0,61292.0,0.13742219]
[1723361966465,0.12240347,61293.0,61292.0,0.13642219]
[1723361966672,0.07348152,61293.0,61292.0,0.13642219]
[1723361967068,0.07348152,61293.0,61292.0,0.13842219]
[1723361967317,0.07348152,61293.0,61292.0,0.13942219]
[1723361967867,0.07348152,61293.0,61292.0,0.13842219]
[1723361968191,0.55749752,61293.0,61292.0,0.14042219]
[1723361968414,0.65536192,61293.0,61292.0,0.0049152]
[1723361968612,0.55749752,61293.0,61292.0,0.0049152]
[1723361969146,0.55749752,61293.0,61292.0,0.0029152]
[1723361970049,0.55749752,61293.0,61292.0,0.0009152]
[1723361970050,0.78590852,61293.0,61292.0,0.0009152]
[1723361970279,0.79090852,61293.0,61292.0,0.0009152]
[1723361970485,0.56249752,61293.0,61292.0,0.0009152]
[1723361971052,0.56649752,61293.0,61292.0,0.0009152]
[1723361971475,0.50069752,61293.0,61292.0,0.0009152]
[1723361971832,0.42509752,61293.0,61292.0,0.0009152]
[1723361975347,0.42509802,61293.0,61292.0,0.0009152]
[1723361978874,0.42109802,61293.0,61292.0,0.0009152]
[1723361979025,0.41609802,61293.0,61292.0,0.0009152]
[1723361979204,0.42009802,61293.0,61292.0,0.0009152]
[1723361979427,0.54450491,61293.0,61292.0,0.0009152]
[1723361979631,0.42209802,61293.0,61292.0,0.0009152]
[1723361979793,0.42209802,61293.0,61292.0,0.0771152]
[1723361979995,0.42209802,61293.0,61292.0,0.1420152]
[1723361980445,0.41809802,61293.0,61292.0,0.1420152]
[1723361980843,0.42009802,61293.0,61292.0,0.1420152]
[1723361982450,0.415016,61293.0,61292.0,0.1420152]
[1723361982609,0.42009794,61293.0,61292.0,0.1420152]
[1723361983630,0.19168694,61293.0,61292.0,0.1420152]
[1723361986064,0.186605,61293.0,61292.0,0.1420152]
[1723361986316,0.28960553,61293.0,61292.0,0.1420152]
[1723361986521,0.186605,61293.0,61292.0,0.1420152]
[1723361986737,0.1896867,61293.0,61292.0,0.1420152]
[1723361987206,0.28960554,61293.0,61292.0,0.1420152]
[1723361987524,0.28760554,61293.0,61292.0,0.1420152]
[1723361987664,0.1876867,61293.0,61292.0,0.1420152]
[1723361987870,0.4160977,61293.0,61292.0,0.1420152]
[1723361988087,0.1886867,61293.0,61292.0,0.1420152]
[1723361988297,0.0734817,61293.0,61292.0,0.1420152]
[1723361988492,0.0734817,61293.0,61292.0,0.1440152]
[1723361989146,0.1876867,61293.0,61292.0,0.1440152]
[1723361989349,0.28560774,61293.0,61292.0,0.1440152]
[1723361989590,0.182605,61293.0,61292.0,0.1440152]
[1723361989722,0.18768668,61293.0,61292.0,0.1440152]
[1723361992028,0.07348168,61293.0,61292.0,0.1440152]
[1723361992691,0.17140326,61293.0,61292.0,0.1440152]
[1723361992924,0.07348168,61293.0,61292.0,0.1440152]
[1723361993298,0.17140326,61293.0,61292.0,0.1440152]
[1723361994505,0.17140326,61293.0,61292.0,0.2582222]
[1723361994506,0.14692144,61293.0,61292.0,0.2582222]
[1723361994680,0.07348168,61293.0,61292.0,0.2582222]
[1723361995007,0.14692244,61293.0,61292.0,0.2582222]
[1723361995301,0.07348168,61293.0,61292.0,0.3937271]
[1723361995537,0.14692244,61293.0,61292.0,0.2582222]
[1723361995723,0.1469182,61293.0,61292.0,0.2582222]
[1723361995932,0.07348168,61293.0,61292.0,0.2582222]
[1723361996089,0.07348168,61293.0,61292.0,0.3937273]
[1723361996290,0.07348168,61293.0,61292.0,0.2582222]
[1723361996720,0.07348145,61293.0,61292.0,0.2582222]
[1723361996927,0.14691797,61293.0,61292.0,0.2582222]
[1723361997282,0.14691797,61293.0,61292.0,0.1440152]
[1723361997283,0.14691801,61293.0,61292.0,0.1440152]
[1723361997937,0.14691801,61293.0,61292.0,0.2582222]
[1723361998533,0.14691799,61293.0,61292.0,0.2582222]
[1723361999232,0.14691801,61293.0,61292.0,0.2582222]
[1723362000327,0.14691388,61293.0,61292.0,0.2582222]
[1723362000532,0.07348149,61293.0,61292.0,0.2582222]
[1723362000757,0.14691388,61293.0,61292.0,0.2582222]
[1723362000931,0.07348149,61293.0,61292.0,0.2582222]
[1723362002247,0.09790986,61295.0,61292.0,1.24278517]
[1723362002248,0.04895371,61295.0,61292.0,1.24278517]
[1723362002448,0.07343239,61297.0,61295.0,0.342604]
[1723362002449,0.04895371,61296.0,61295.0,0.342604]
[1723362002600,0.04895371,61296.0,61295.0,1.01312797]
[1723362002601,0.00508114,61296.0,61295.0,1.01312797]
[1723362003003,0.11735371,61297.0,61296.0,0.342598]
[1723362003212,0.12243481,61297.0,61296.0,0.114199]
[1723362003440,0.0734811,61297.0,61296.0,0.114199]
[1723362004214,0.0734811,61297.0,61296.0,0.342598]
[1723362004215,0.12541991,61297.0,61296.0,0.342598]
[1723362005315,0.12541906,61297.0,61296.0,0.114199]
[1723362005600,0.12841906,61297.0,61296.0,0.114199]
[1723362005794,0.12541914,61297.0,61296.0,0.342598]
[1723362006003,0.12241914,61297.0,61296.0,0.344598]
[1723362006143,0.12341914,61297.0,61296.0,0.116199]
[1723362006342,0.12341914,61297.0,61296.0,0.114199]
[1723362006747,0.12241914,61297.0,61296.0,0.114199]
[1723362006999,0.12241914,61297.0,61296.0,0.118199]
[1723362007642,0.12241914,61297.0,61296.0,0.121199]
[1723362008252,0.12241022,61297.0,61296.0,0.121199]
[1723362008452,0.07348118,61297.0,61296.0,0.121199]
[1723362008936,0.12241022,61297.0,61296.0,0.121199]
[1723362009290,0.07348118,61297.0,61296.0,0.121199]
[1723362009814,0.12241022,61297.0,61296.0,0.007]
[1723362010192,0.14179357,61297.0,61296.0,0.007]
[1723362010393,0.14687489,61297.0,61296.0,0.007]
[1723362010664,0.14687489,61297.0,61296.0,0.198799]
[1723362010847,0.12240453,61297.0,61296.0,0.427198]
[1723362011007,0.07348132,61297.0,61296.0,0.65621292]
[1723362013770,0.07348115,61297.0,61296.0,0.65621292]
[1723362014130,0.07348115,61297.0,61296.0,0.42781392]
[1723362014330,0.07348115,61297.0,61296.0,0.65621292]
[1723362016318,0.00508115,61297.0,61296.0,0.88461192]
[1723362016519,0.0684,61297.0,61296.0,1.02010779]
[1723362016672,0.07348115,61297.0,61296.0,1.02010779]
[1723362017285,0.0684,61297.0,61296.0,1.02010779]
[1723362017512,0.07348103,61297.0,61296.0,1.02010779]
[1723362017888,0.0684,61297.0,61296.0,0.88461192]
[1723362018156,0.07348101,61297.0,61296.0,1.02010561]
[1723362018332,0.0684,61297.0,61296.0,1.02010561]
[1723362018831,0.000832,61299.0,61296.0,1.02010561]
[1723362019008,0.000832,61299.0,61298.0,0.71378]
[1723362019189,0.00591286,61299.0,61298.0,1.01308457]
[1723362019601,0.000832,61299.0,61298.0,1.01308457]
[1723362020193,0.000832,61299.0,61298.0,1.11308457]
[1723362020446,0.000832,61299.0,61298.0,1.36447657]
[1723362022127,0.000832,61299.0,61298.0,1.36647657]
[1723362022337,0.000832,61299.0,61298.0,1.36547657]
[1723362022558,0.000832,61299.0,61298.0,1.36447657]
[1723362023105,0.001832,61299.0,61298.0,1.3851897]
[1723362023533,0.000832,61299.0,61298.0,1.3741897]
[1723362023667,0.000832,61299.0,61298.0,1.11308457]
[1723362023849,0.001832,61299.0,61298.0,0.89569257]
[1723362024208,0.000832,61299.0,61298.0,1.11308457]
[1723362024418,0.000832,61299.0,61298.0,0.97759492]
[1723362024661,0.001832,61299.0,61298.0,1.12607403]
[1723362024991,0.002832,61299.0,61298.0,1.13807403]
[1723362025398,0.000832,61299.0,61298.0,1.11307403]
[1723362025595,0.001832,61299.0,61298.0,1.12107403]
[1723362025834,0.002832,61299.0,61298.0,1.13207403]
[1723362026832,0.002832,61299.0,61298.0,0.90368203]
[1723362027060,0.002832,61299.0,61298.0,1.13207403]
[1723362027931,0.002832,61299.0,61298.0,0.99659492]
[1723362028152,0.002832,61299.0,61298.0,1.13207295]
[1723362030355,0.002832,61299.0,61298.0,0.90368095]
[1723362030827,0.002832,61299.0,61298.0,1.13207295]
[1723362033247,0.002832,61299.0,61298.0,1.38346495]
[1723362035087,0.002832,61299.0,61298.0,1.3834516]
[1723362035853,0.001832,61299.0,61298.0,1.3724516]
[1723362036242,0.002832,61299.0,61298.0,1.3854516]
[1723362036660,0.002832,61299.0,61298.0,1.60150212]
[1723362036661,0.000832,61299.0,61298.0,1.60150212]
[1723362037062,0.001832,61299.0,61298.0,1.62850212]
[1723362037514,0.001832,61299.0,61298.0,1.56077421]
[1723362038425,0.001832,61299.0,61298.0,1.25598692]
[1723362038598,0.001832,61299.0,61298.0,1.39144668]
[1723362039040,0.001832,61299.0,61298.0,1.25598692]
[1723362039198,0.001832,61299.0,61298.0,1.39144745]
[1723362039399,0.001832,61299.0,61298.0,1.39236265]
[1723362040179,0.001832,61299.0,61298.0,1.39236402]
[1723362041472,0.001832,61299.0,61298.0,1.40236402]
[1723362041679,0.001832,61299.0,61298.0,1.39236402]
[1723362042130,0.001832,61299.0,61298.0,1.63075584]
[1723362042337,0.001832,61299.0,61298.0,1.93620244]
[1723362042535,0.001832,61299.0,61298.0,2.13184998]
[1723362043279,0.001832,61299.0,61298.0,2.11984998]
[1723362043483,0.001832,61299.0,61298.0,2.13184998]
[1723362043857,0.001832,61299.0,61298.0,2.15184998]
[1723362044897,1.001331,61300.0,61299.0,1.059746]
[1723362045199,1.001331,61300.0,61299.0,2.11316324]
[1723362045498,1.001331,61300.0,61299.0,1.56900738]
[1723362045673,1.001331,61300.0,61299.0,2.13568363]
[1723362046098,1.001331,61300.0,61299.0,2.14968363]
[1723362046323,0.99716727,61300.0,61299.0,2.14968363]
[1723362046465,0.99716727,61300.0,61299.0,2.16368363]
[1723362046667,0.99716727,61300.0,61299.0,2.13568363]
[1723362046908,0.99716727,61300.0,61299.0,2.35607163]
[1723362047107,0.99716727,61300.0,61299.0,2.37007163]
[1723362047436,0.9630886,61300.0,61299.0,2.37007163]
[1723362048166,0.9630886,61300.0,61299.0,2.14168363]
[1723362048515,0.9470286,61300.0,61299.0,1.94747007]
[1723362048664,0.8987686,61300.0,61299.0,2.17585807]
[1723362048873,0.8987686,61300.0,61299.0,2.19785807]
[1723362049075,0.8897686,61300.0,61299.0,2.0551855]
[1723362049273,0.8793586,61300.0,61299.0,2.17584554]
[1723362049624,0.8793586,61300.0,61299.0,1.93883636]
[1723362049837,0.8793586,61300.0,61299.0,2.17583041]
[1723362050051,0.8793586,61300.0,61299.0,2.22445906]
[1723362050238,0.8793586,61300.0,61299.0,2.01807106]
[1723362050442,0.8793586,61300.0,61299.0,2.03784241]
[1723362050775,0.8793586,61300.0,61299.0,2.26623041]
[1723362050972,0.8793586,61300.0,61299.0,2.03784241]
[1723362051601,0.8793586,61300.0,61299.0,2.26623041]
[1723362051797,0.8793586,61300.0,61299.0,2.24423041]
[1723362051961,0.8793586,61300.0,61299.0,2.26623041]
[1723362052532,0.8793586,61300.0,61299.0,1.97012695]
[1723362052655,0.8793586,61300.0,61299.0,2.0378428]
[1723362053121,0.8793586,61300.0,61299.0,2.2662308]
[1723362053641,0.8793586,61300.0,61299.0,2.2442308]
[1723362055152,0.8793586,61300.0,61299.0,2.2662308]
[1723362055362,0.8793586,61300.0,61299.0,2.0378428]
[1723362055529,0.8793586,61300.0,61299.0,2.0158428]
[1723362055732,0.8793586,61300.0,61299.0,2.0378428]
[1723362056122,0.8793586,61300.0,61299.0,2.26624167]
[1723362056341,0.8793586,61300.0,61299.0,2.03785367]
[1723362058871,0.8793586,61300.0,61299.0,1.66540738]
[1723362059074,0.8793586,61300.0,61299.0,1.57500738]
[1723362059437,0.8793586,61300.0,61299.0,1.64272611]
[1723362060127,0.8793586,61300.0,61299.0,1.63272611]
[1723362060677,0.8793586,61300.0,61299.0,1.23177292]
[1723362060883,0.8793586,61300.0,61299.0,1.09117292]
[1723362061478,0.8793586,61300.0,61299.0,1.26046975]
[1723362061711,0.8793586,61300.0,61299.0,1.24646975]
[1723362062470,0.8793586,61300.0,61299.0,1.26946975]
[1723362062669,0.8793586,61300.0,61299.0,1.11417292]
[1723362063538,1.0178586,61300.0,61299.0,1.11417292]